bitfinex/quotes_ETHUSD_20260225
["timestamp","ask_amount","ask_price","bid_price","bid_amount"]
[1771985797475,10.5179508,1936.7,1935.7,5.30567211]
[1771985797974,0.002,1936.4,1935.7,5.30567211]
[1771985798674,0.002,1936.4,1935.7,1.29149426]
[1771985799592,5.35446681,1936.3,1935.4,6.59735318]
[1771985800157,1.29118892,1936.2,1935.4,6.59735318]
[1771985800814,1.29118892,1936.2,1935.1,5.16863511]
[1771985800815,6.64565573,1936.2,1935.1,5.30667211]
[1771985801078,5.35446681,1936.1,1935.1,6.5985575]
[1771985801257,5.35446681,1936.1,1935.2,1.29285404]
[1771985801859,5.35446681,1936.1,1935.3,5.30567211]
[1771985802180,5.1647557,1936.3,1935.4,1.29172264]
[1771985802358,5.1647557,1936.3,1935.4,6.59739475]
[1771985802559,10.51922251,1936.3,1935.4,6.59739475]
[1771985803688,5.35446681,1936.2,1935.3,1.29174287]
[1771985803878,5.35446681,1936.2,1935.2,1.29280568]
[1771985804185,1.29125561,1936.1,1935.2,1.29280568]
[1771985804491,5.35446681,1935.5,1934.6,0.001]
[1771985804697,9.36423567,1935.2,1934.4,0.001]
[1771985804880,5.35446681,1935.2,1934.4,0.001]
[1771985805255,5.35446681,1935.2,1934.4,0.002]
[1771985805490,4.00976886,1935.0,1934.4,0.002]
[1771985806487,5.35446681,1934.7,1934.1,0.001]
[1771985807691,6.64625619,1935.3,1934.3,0.001]
[1771985808087,5.35446681,1935.0,1934.3,0.001]
[1771985808383,1.29205643,1934.9,1934.3,0.001]
[1771985809093,1.29205643,1934.9,1934.2,0.001]
[1771985809298,1.29205643,1934.9,1934.3,0.001]
[1771985810293,1.29205643,1934.9,1934.2,0.001]
[1771985810294,10.6562921,1934.9,1934.2,0.001]
[1771985810587,1.29219,1934.7,1934.5,0.001]
[1771985810790,6.64665681,1934.7,1934.2,0.002]
[1771985811179,6.64665681,1934.7,1934.4,0.001]
[1771985811590,6.64665681,1934.7,1934.2,0.002]
[1771985813667,6.64665681,1934.7,1934.2,0.001]
[1771985814101,6.64665681,1934.7,1934.1,0.001]
[1771985814311,5.35446681,1934.6,1934.1,0.001]
[1771985814693,1.29232359,1934.5,1934.1,0.001]
[1771985815515,1.29232359,1934.5,1933.6,6.59854704]
[1771985815691,1.29232359,1934.5,1933.7,0.001]
[1771985816620,5.44027494,1934.4,1933.7,0.001]
[1771985816791,6.73273215,1934.3,1933.7,0.001]
[1771985818303,5.44027494,1934.1,1933.0,5.1440909]
[1771985818502,1.29245721,1934.3,1932.7,5.17398276]
[1771985818503,8.10178181,1933.9,1932.7,10.76457743]
[1771985818689,1.29279139,1933.8,1933.0,5.1440909]
[1771985819510,6.73306633,1933.8,1932.7,6.43761216]
[1771985819688,6.73306633,1933.8,1932.8,5.1440909]
[1771985820213,1.29279139,1933.8,1932.8,5.1440909]
[1771985820413,5.17070985,1934.0,1932.8,5.1440909]
[1771985820709,6.73273215,1934.3,1933.2,5.1440909]
[1771985821282,6.73273215,1934.3,1932.9,5.1440909]
[1771985821484,5.44027494,1934.0,1932.9,5.1440909]
[1771985821712,1.29245721,1934.3,1932.9,5.1440909]
[1771985821934,5.16982887,1934.5,1933.1,5.1440909]
[1771985821935,5.1693814,1934.5,1933.1,5.1440909]
[1771985822091,1.29232359,1934.5,1933.4,5.1440909]
[1771985822291,6.73258282,1934.6,1933.4,5.1440909]
[1771985822991,6.73258282,1934.6,1933.6,5.1440909]
[1771985823421,7.64230788,1934.6,1933.6,5.1440909]
[1771985823703,5.44027494,1934.3,1933.3,5.1450909]
[1771985823905,5.44027494,1934.0,1933.3,0.001]
[1771985825229,1.29272454,1933.9,1933.3,0.001]
[1771985828332,6.73299948,1933.9,1933.3,0.001]
[1771985829196,6.73299948,1933.9,1933.0,0.001]
[1771985829425,6.73313319,1933.7,1933.0,0.001]
[1771985831820,5.44027494,1933.4,1932.6,1.18308542]
[1771985833000,6.73313319,1933.7,1932.7,5.1440909]
[1771985833438,6.73313319,1933.7,1932.8,6.43755116]
[1771985833735,6.73313319,1933.7,1932.8,5.1440909]
[1771985834294,13.08313319,1933.7,1932.8,5.1440909]
[1771985835327,7.64285825,1933.7,1932.8,5.1440909]
[1771985835500,7.64285825,1933.7,1933.0,5.1440909]
[1771985837135,0.002,1933.8,1933.0,5.1440909]
[1771985837436,1.29480623,1933.8,1933.0,5.1440909]
[1771985837729,0.002,1933.8,1933.2,5.1440909]
[1771985839332,5.44227494,1933.8,1932.9,5.1440909]
[1771985839516,6.73313319,1933.7,1932.9,6.43747849]
[1771985839835,6.73313319,1933.7,1932.7,1.29450924]
[1771985840336,6.73313319,1933.7,1932.8,5.1440909]
[1771985841805,6.73313319,1933.7,1932.7,6.43858835]
[1771985842242,6.73313319,1933.7,1932.7,5.1450909]
[1771985842458,11.79027494,1933.6,1932.7,5.1450909]
[1771985842732,5.44027494,1933.5,1932.7,6.43861306]
[1771985842904,5.44027494,1933.5,1932.7,5.1450909]
[1771985843106,6.35,1933.6,1932.8,5.1440909]
[1771985844024,7.64297969,1933.6,1933.0,5.1440909]
[1771985845560,6.35,1933.6,1933.0,5.1440909]
[1771985845714,0.002,1933.8,1933.0,5.1440909]
[1771985845915,0.002,1933.8,1933.3,4.91718572]
[1771985846928,0.002,1934.1,1933.5,4.8946592]
[1771985848022,0.002,1934.1,1933.6,6.18758431]
[1771985848333,0.002,1934.1,1933.3,4.8946592]
[1771985849423,0.002,1934.0,1933.3,4.8946592]
[1771985850352,0.002,1934.0,1933.6,4.8946592]
[1771985851340,0.002,1934.3,1933.8,4.8946592]
[1771985851842,0.002,1934.8,1933.8,4.8946592]
[1771985852422,1.29412699,1934.8,1934.0,4.8946592]
[1771985853546,6.49056492,1934.8,1934.0,4.8946592]
[1771985854448,0.002,1934.8,1934.2,4.8946592]
[1771985854817,0.002,1934.9,1934.2,4.8946592]
[1771985855421,1.29408507,1934.9,1934.2,4.8946592]
[1771985855624,5.19643793,1934.3,1933.2,1.29319263]
[1771985855924,5.19643793,1934.3,1933.4,3.89800703]
[1771985856133,5.19643793,1934.3,1933.5,3.90228235]
[1771985856336,5.19643793,1934.3,1933.4,3.89283625]
[1771985856652,1.2924505,1934.4,1933.6,3.89283625]
[1771985857628,6.48888843,1934.4,1933.7,3.90228235]
[1771985857852,6.48888843,1934.4,1933.4,1.29303465]
[1771985859351,6.48888843,1934.4,1933.2,5.62048653]
[1771985859538,6.48888843,1934.4,1933.3,7.99313103]
[1771985859743,6.48888843,1934.4,1933.4,4.09084868]
[1771985861053,6.48888843,1934.4,1933.5,1.29399198]
[1771985862345,6.48888843,1934.4,1933.6,4.07311478]
[1771985862657,6.48869472,1934.6,1933.7,4.07311478]
[1771985863259,5.19643793,1934.6,1933.8,5.3598903]
[1771985863473,1.29415654,1934.8,1933.9,4.06709891]
[1771985863636,0.002,1934.8,1933.9,4.06709891]
[1771985863939,0.002,1934.8,1934.1,4.06101956]
[1771985865129,0.002,1934.8,1934.2,5.34745034]
[1771985865334,0.002,1934.8,1934.3,4.0549263]
[1771985865750,0.002,1934.8,1934.4,3.90228235]
[1771985865948,0.002,1934.8,1934.3,3.90228235]
[1771985866734,5.19843793,1934.8,1934.3,3.90228235]
[1771985867258,6.49062205,1934.8,1934.3,3.90228235]
[1771985867572,6.49062205,1934.8,1934.1,1.2925439]
[1771985867573,6.49062205,1934.8,1934.1,1.29254059]
[1771985867772,6.49062205,1934.8,1934.2,3.90228235]
[1771985868568,0.002,1934.8,1934.2,3.90228235]
[1771985868968,0.002,1934.8,1934.1,6.91302712]
[1771985869273,0.002,1934.8,1934.3,1.29245721]
[1771985870337,6.49036991,1935.1,1934.7,9.64252735]
[1771985870338,0.002,1935.1,1934.7,9.64252735]
[1771985870564,1.29165016,1935.6,1934.7,9.64252735]
[1771985870873,1.29165016,1935.6,1934.8,3.90228235]
[1771985871176,6.48808809,1935.6,1934.8,3.90228235]
[1771985872946,6.48808809,1935.6,1934.3,5.30818455]
[1771985873162,6.48808809,1935.6,1934.4,3.90228235]
[1771985873360,5.19643793,1935.5,1934.4,3.90228235]
[1771985873564,5.19643793,1935.3,1934.4,5.19461731]
[1771985873978,5.19643793,1935.3,1934.4,3.90228235]
[1771985874273,0.002,1934.8,1934.4,3.90228235]
[1771985874469,0.002,1934.8,1934.5,3.90228235]
[1771985874671,0.002,1934.8,1934.4,3.90228235]
[1771985875582,0.002,1934.8,1934.2,1.29348139]
[1771985875786,0.002,1934.8,1934.3,3.90228235]
[1771985877289,4.91772649,1934.8,1934.3,3.90228235]
[1771985877654,4.91572649,1934.6,1934.2,0.001]
[1771985877858,4.91572649,1934.6,1934.1,1.552]
[1771985878067,4.91572649,1934.6,1933.9,0.001]
[1771985878285,4.91572649,1934.6,1933.9,3.90328235]
[1771985879401,1.29219,1934.7,1933.9,9.16633442]
[1771985879714,1.29219,1934.7,1934.0,3.90228235]
[1771985879889,1.29219,1934.7,1934.1,1.29259086]
[1771985880409,1.29219,1934.7,1934.0,5.19488534]
[1771985881467,7.64412405,1934.8,1934.0,13.20932345]
[1771985881667,4.91572649,1934.7,1934.0,3.90228235]
[1771985881868,6.20798328,1934.6,1933.9,1.29370992]
[1771985882092,4.91572649,1934.5,1934.0,3.90228235]
[1771985883165,4.91572649,1934.4,1933.5,0.001]
[1771985884069,4.91572649,1934.2,1933.5,0.001]
[1771985884670,4.91572649,1934.1,1933.5,0.001]
[1771985885298,4.91572649,1934.1,1933.2,0.001]
[1771985885481,1.29245721,1934.3,1933.2,0.001]
[1771985885482,4.91572649,1933.8,1933.2,0.001]
[1771985886084,6.20858474,1933.7,1933.2,0.001]
[1771985888303,6.20858474,1933.7,1932.8,0.001]
[1771985888304,4.91572649,1933.6,1932.8,0.001]
[1771985888603,5.171433,1933.8,1932.6,1.18308542]
[1771985888604,4.91572649,1933.0,1932.6,1.18308542]
[1771985889012,4.91572649,1933.0,1932.6,1.16480044]
[1771985889213,4.91572649,1932.8,1931.9,3.104]
[1771985890283,4.91572649,1932.6,1931.9,3.054]
[1771985891011,1.29350561,1932.8,1931.9,12.41513921]
[1771985891213,6.20913726,1932.9,1931.9,12.41513921]
[1771985891389,4.91572649,1932.8,1931.9,8.40301612]
[1771985891796,4.91572649,1932.8,1931.9,4.3480618]
[1771985892396,4.91572649,1933.1,1932.2,8.08862127]
[1771985892632,4.91572649,1932.8,1931.9,3.054]
[1771985892819,4.91572649,1932.8,1931.9,4.3480308]
[1771985893113,4.91572649,1932.8,1931.9,3.054]
[1771985893300,4.91572649,1932.8,1931.5,1.29429287]
[1771985893301,4.91572649,1932.7,1931.5,1.29429287]
[1771985893614,4.91572649,1932.5,1931.4,1.294364]
[1771985894609,6.20945449,1932.4,1931.3,1.29446486]
[1771985894808,4.91572649,1932.3,1931.3,1.29446486]
[1771985895128,4.91572649,1932.3,1931.4,4.01212309]
[1771985895286,1.29370538,1932.5,1931.5,4.05464008]
[1771985896319,6.20936145,1932.6,1931.5,4.05464008]
[1771985896484,4.91572649,1932.5,1931.5,4.05464008]
[1771985896689,1.29370053,1932.5,1931.5,4.01212309]
[1771985896913,6.20936355,1932.6,1931.5,8.05942766]
[1771985897108,4.91572649,1932.8,1931.7,4.01212309]
[1771985897311,4.91572649,1932.8,1931.6,4.03994006]
[1771985898402,4.91572649,1932.7,1931.4,1.29436699]
[1771985898613,6.20952144,1932.3,1931.1,9.42116822]
[1771985898941,4.91572649,1932.2,1931.2,8.76158173]
[1771985899091,1.29373104,1932.4,1931.4,4.03258173]
[1771985899431,4.91572649,1932.3,1931.1,5.38858649]
[1771985900239,4.91572649,1932.2,1931.1,1.2945434]
[1771985900551,4.91572649,1932.2,1931.1,5.30666649]
[1771985900688,4.91572649,1932.0,1931.1,1.2945434]
[1771985901822,4.01212309,1932.6,1931.2,4.01312309]
[1771985902117,4.01212309,1932.6,1931.2,8.02357082]
[1771985902118,4.91572649,1932.4,1931.2,8.02357082]
[1771985902624,4.91572649,1932.4,1931.4,4.01212309]
[1771985902787,1.29379495,1932.3,1931.5,1.29433083]
[1771985903293,4.91572649,1932.2,1931.5,1.29433083]
[1771985903687,4.91572649,1932.2,1931.3,1.29446486]
[1771985905231,1.29392888,1932.1,1931.3,1.29446486]
[1771985907125,6.21448009,1931.9,1931.2,0.001]
[1771985908399,4.92041726,1932.2,1931.2,0.001]
[1771985908615,4.92041726,1932.1,1931.2,0.001]
[1771985908799,4.92041726,1931.8,1931.2,0.001]
[1771985909428,6.21461408,1931.7,1931.2,0.001]
[1771985909603,4.92041726,1931.6,1931.2,0.001]
[1771985910611,4.92041726,1931.6,1931.0,0.001]
[1771985911299,4.92041726,1931.4,1931.0,0.001]
[1771985911530,4.92041726,1931.3,1931.0,0.001]
[1771985913628,4.92041726,1931.4,1931.0,0.001]
[1771985913822,4.92041726,1931.4,1930.6,2.79892434]
[1771985914208,4.92041726,1931.4,1930.6,2.79893102]
[1771985914931,4.92041726,1931.4,1931.1,0.001]
[1771985915102,4.92041726,1931.2,1930.6,1.504]
[1771985915303,4.92041726,1931.2,1931.0,0.001]
[1771985915527,4.92041726,1931.0,1930.6,1.504]
[1771985915699,4.92041726,1931.0,1930.3,1.33147754]
[1771985915700,4.92041726,1931.0,1930.8,0.001]
[1771985916128,4.92041726,1931.0,1930.3,1.33150403]
[1771985917107,6.21491931,1931.3,1930.4,3.90017525]
[1771985917326,4.92041726,1931.3,1930.4,3.90017525]
[1771985917528,6.21489738,1931.3,1930.5,1.29500129]
[1771985918647,4.92041726,1931.3,1930.5,1.29500129]
[1771985918807,6.214798,1931.5,1930.5,9.19972179]
[1771985919008,6.21475492,1931.5,1930.6,3.89259741]
[1771985919327,6.214749,1931.5,1930.6,3.89259741]
[1771985919522,6.214749,1931.5,1930.7,1.29486714]
[1771985921415,6.21476148,1931.5,1930.7,1.29486714]
[1771985921929,6.21475562,1931.5,1930.7,1.29486714]
[1771985923134,4.92041726,1931.5,1930.7,5.14951601]
[1771985923437,6.21460065,1931.8,1930.9,7.86677196]
[1771985923636,6.21460065,1931.8,1931.0,1.29466597]
[1771985925155,7.64408063,1931.9,1931.1,3.83941115]
[1771985925446,12.56449789,1931.9,1931.1,3.83941115]
[1771985925808,12.56449789,1931.9,1931.2,1.29453189]
[1771985926005,4.92041726,1931.8,1931.2,1.29453189]
[1771985926458,7.64406991,1931.9,1931.2,1.29453189]
[1771985926676,4.92041726,1931.8,1930.7,5.12671489]
[1771985926961,4.92041726,1931.8,1930.7,1.29486714]
[1771985927669,4.92041726,1931.8,1930.7,1.29586714]
[1771985927830,1.29419682,1931.7,1930.7,1.29586714]
[1771985928039,1.29419682,1931.7,1930.8,7.8363443]
[1771985928341,4.92041726,1931.7,1930.7,1.29586714]
[1771985928743,4.92041726,1931.6,1930.7,0.001]
[1771985929369,4.92041726,1931.3,1930.7,0.001]
[1771985930035,4.92041726,1931.1,1930.7,0.001]
[1771985932264,6.21493444,1931.3,1930.7,0.001]
[1771985932833,1.29451718,1931.3,1930.7,0.001]
[1771985933051,4.92041726,1931.2,1930.7,0.001]
[1771985934350,1.29459893,1931.1,1930.7,0.001]
[1771985934881,1.29420855,1931.7,1930.9,4.73802245]
[1771985935085,4.92041726,1931.6,1930.7,0.001]
[1771985938389,5.02664577,1931.4,1930.7,1.29586714]
[1771985938751,5.02664577,1931.4,1930.7,6.03603304]
[1771985940166,6.32104554,1931.4,1930.7,6.03603304]
[1771985940486,5.02664577,1931.7,1930.8,4.72568747]
[1771985940666,5.02664577,1931.6,1930.8,4.72568747]
[1771985942285,1.29433083,1931.5,1930.9,1.29473302]
[1771985942482,6.3209766,1931.5,1930.9,1.29473302]
[1771985942783,6.3229766,1931.5,1930.9,1.29473302]
[1771985943881,5.02664577,1931.4,1930.9,1.29473302]
[1771985944072,5.02664577,1931.4,1930.8,1.29579619]
[1771985944391,6.32104415,1931.4,1930.8,0.001]
[1771985944752,5.02664577,1931.4,1930.8,0.001]
[1771985944953,0.002,1931.5,1930.8,0.001]
[1771985945248,0.002,1931.5,1930.8,4.69783573]
[1771985945382,1.29635668,1931.5,1930.8,4.69783573]
[1771985946474,1.29635668,1931.5,1930.9,1.29473302]
[1771985946475,6.32300245,1931.5,1930.9,1.29473302]
[1771985947169,6.32300245,1931.5,1930.8,5.99258099]
[1771985948077,5.63899825,1931.3,1930.8,0.001]
[1771985948402,5.02664577,1931.0,1930.3,0.03638121]
[1771985949209,5.02664577,1931.0,1930.3,5.99306964]
[1771985949413,6.3212277,1931.2,1930.4,4.66156794]
[1771985949572,1.29451886,1931.3,1930.4,4.66156794]
[1771985949771,6.32116463,1931.3,1930.4,4.66156794]
[1771985950389,6.32116463,1931.3,1930.5,1.29500129]
[1771985950791,5.02664577,1931.2,1930.5,1.29500129]
[1771985951511,5.02864577,1931.5,1930.6,4.74461251]
[1771985951800,6.32298027,1931.5,1930.6,4.74461251]
[1771985952205,5.02864577,1931.5,1930.6,4.74461251]
[1771985952382,5.02864577,1931.5,1930.9,6.03213852]
[1771985952383,0.002,1931.5,1930.9,6.03213852]
[1771985955022,5.02864577,1931.5,1930.9,1.29473302]
[1771985955313,5.17855042,1931.8,1931.1,4.71663481]
[1771985955314,0.002,1931.8,1931.1,4.71663481]
[1771985955490,0.002,1931.8,1931.6,0.6643985]
[1771985955491,5.02664577,1931.7,1931.6,0.6643985]
[1771985955693,5.02664577,1931.7,1930.9,1.29473302]
[1771985955899,0.002,1931.8,1931.0,4.71663481]
[1771985956280,5.02664577,1931.7,1930.9,1.29473302]
[1771985956485,5.02664577,1931.5,1930.8,5.1789321]
[1771985956686,5.02664577,1931.5,1930.9,0.001]
[1771985956913,0.002,1931.4,1930.9,0.001]
[1771985957510,0.002,1931.4,1930.9,4.70323037]
[1771985957682,0.002,1931.4,1930.9,0.001]
[1771985963339,5.02864577,1931.4,1930.9,0.001]
[1771985965635,0.002,1931.4,1930.9,4.63829331]
[1771985967636,4.83947714,1931.4,1930.9,0.001]
[1771985969426,4.83947714,1931.4,1930.9,1.29571821]
[1771985969623,1.2964536,1931.4,1930.9,0.001]
[1771985969799,4.83747714,1931.3,1930.9,0.001]
[1771985970621,0.002,1931.4,1930.9,0.001]
[1771985971305,0.002,1931.4,1931.0,0.001]
[1771985971624,4.83747714,1931.3,1931.0,0.001]
[1771985973828,0.002,1931.4,1931.0,0.001]
[1771985974218,0.002,1931.8,1931.0,0.001]
[1771985974527,0.002,1931.8,1931.2,1.29448623]
[1771985974528,4.83947714,1931.8,1931.2,1.29448623]
[1771985976726,0.002,1931.8,1931.2,4.56673768]
[1771985978820,0.002,1931.8,1931.3,1.29446486]
[1771985979520,4.83947714,1931.8,1931.3,1.29446486]
[1771985979718,0.002,1931.8,1931.3,1.29446486]
[1771985980605,0.002,1931.8,1931.4,4.53755715]
[1771985980907,11.52784394,1932.1,1931.5,4.53555715]
[1771985980908,7.64592932,1932.1,1931.5,4.53555715]
[1771985981204,12.48340646,1932.1,1931.5,4.53555715]
[1771985981713,7.64593171,1932.1,1931.5,4.53555715]
[1771985982024,6.352,1932.1,1931.5,4.53555715]
[1771985982401,0.002,1932.1,1931.5,4.53555715]
[1771985982802,0.002,1932.1,1931.7,4.52105524]
[1771985983816,0.002,1932.1,1931.8,4.51379537]
[1771985985112,0.002,1932.1,1931.9,1.29406283]
[1771985985628,0.002,1932.0,1931.8,5.8078723]
[1771985986532,4.83747714,1932.8,1931.8,5.78608492]
[1771985986731,4.83747714,1932.8,1931.9,4.49200799]
[1771985987306,4.83747714,1932.6,1932.0,1.29399585]
[1771985987505,4.83747714,1932.6,1931.9,4.49200799]
[1771985987727,4.83747714,1932.6,1931.9,5.78606417]
[1771985989829,4.83747714,1932.4,1931.7,4.47073361]
[1771985993054,6.13122592,1932.4,1931.8,1.29412982]
[1771985993247,4.83747714,1932.4,1931.8,5.73594571]
[1771985994008,6.13121076,1932.4,1931.8,5.73594571]
[1771985996146,4.82106509,1932.4,1931.8,5.73594571]
[1771985997544,6.11480196,1932.4,1931.8,5.73594571]
[1771985997745,4.8764239,1932.3,1931.8,5.73594571]
[1771985997947,4.8764239,1932.3,1931.8,0.001]
[1771985998151,4.8764239,1932.1,1931.8,0.001]
[1771985999542,4.8764239,1932.7,1932.0,4.40607559]
[1771986000246,4.8764239,1932.5,1931.9,1.29401209]
[1771986000638,4.8764239,1932.5,1931.8,5.69225461]
[1771986001044,4.8764239,1932.5,1931.8,0.001]
[1771986001228,4.8764239,1932.4,1931.5,0.001]
[1771986002156,4.8764239,1932.2,1931.5,0.001]
[1771986003555,4.8764239,1932.6,1931.7,4.37171364]
[1771986003762,4.8764239,1932.6,1931.5,4.37271364]
[1771986004173,4.8764239,1932.4,1931.6,5.6571742]
[1771986004350,1.29366106,1932.5,1931.7,4.44483038]
[1771986004550,4.8764239,1932.6,1931.7,4.44483038]
[1771986004757,4.8764239,1932.6,1931.8,4.36291038]
[1771986005052,1.29550822,1932.8,1932.0,4.36291038]
[1771986005296,6.17193212,1932.8,1932.0,4.36291038]
[1771986005469,4.8764239,1932.7,1931.7,4.43602726]
[1771986005854,4.8764239,1932.7,1931.9,8.37678474]
[1771986006166,6.16995204,1932.7,1932.0,1.29399585]
[1771986006369,6.16995885,1932.7,1932.0,1.29399585]
[1771986006561,4.8764239,1932.7,1932.0,5.63932611]
[1771986006959,0.002,1932.8,1932.1,4.34533026]
[1771986007376,1.29526538,1933.1,1932.3,4.33657539]
[1771986007545,4.8784239,1933.1,1932.3,4.33657539]
[1771986007741,4.8784239,1933.1,1932.4,4.33657539]
[1771986007949,0.002,1933.1,1932.4,4.33657539]
[1771986008149,0.002,1933.1,1932.5,5.62149819]
[1771986008345,0.002,1933.1,1932.6,8.35051461]
[1771986008674,0.002,1933.1,1932.7,4.32783713]
[1771986010175,0.002,1933.1,1932.8,1.29346026]
[1771986011475,0.002,1933.1,1932.7,1.29352595]
[1771986012355,0.002,1933.0,1932.7,1.29352595]
[1771986012977,0.002,1933.0,1932.6,1.29354044]
[1771986013360,0.002,1933.0,1932.6,5.57819167]
[1771986013692,0.002,1933.3,1932.7,4.28465123]
[1771986014013,0.002,1933.3,1932.6,9.59886915]
[1771986014014,4.8784239,1933.3,1932.6,9.59886915]
[1771986014283,4.8764239,1933.1,1932.5,5.17443624]
[1771986014652,4.8764239,1933.1,1932.5,1.29366106]
[1771986015053,4.8764239,1933.1,1932.4,1.29370271]
[1771986015265,4.8764239,1933.1,1932.3,1.29379001]
[1771986016189,4.8764239,1933.0,1932.3,1.29379001]
[1771986018479,6.16975116,1933.0,1932.3,1.29379001]
[1771986018779,4.8764239,1932.9,1932.2,9.55654246]
[1771986018984,4.8764239,1932.9,1932.1,0.001]
[1771986019189,4.8764239,1932.9,1932.2,4.23156957]
[1771986019368,4.8764239,1933.0,1932.3,4.23156957]
[1771986020065,4.8764239,1933.2,1932.3,4.23156957]
[1771986020309,4.8764239,1933.2,1932.7,1.29352718]
[1771986023691,6.16962367,1933.2,1932.6,9.53934857]
[1771986023896,4.8764239,1933.1,1932.6,1.29356605]
[1771986024198,1.29516471,1933.3,1932.6,1.29356605]
[1771986024404,6.17158861,1933.3,1932.6,5.48312946]
[1771986024899,1.29515816,1933.3,1932.6,5.48312946]
[1771986025077,6.17158206,1933.3,1932.6,5.48312946]
[1771986025282,4.60675039,1933.2,1932.6,5.48312946]
[1771986025473,4.60675039,1933.2,1932.6,1.29356605]
[1771986025703,4.60675039,1933.2,1932.5,1.29361162]
[1771986026078,4.60875039,1933.2,1932.5,1.29366106]
[1771986026604,4.52849264,1933.0,1932.4,5.46658608]
[1771986026995,5.82175217,1933.1,1932.4,5.46658608]
[1771986027507,4.52849264,1933.0,1932.4,5.46658608]
[1771986028067,4.52849264,1933.0,1932.1,1.29487696]
[1771986028906,4.52849264,1932.8,1932.1,0.001]
[1771986029115,4.52849264,1932.8,1932.1,8.17940632]
[1771986029281,4.52849264,1932.8,1932.2,4.14750035]
[1771986029923,4.52849264,1933.1,1932.3,4.02267748]
[1771986030086,4.52849264,1933.1,1932.3,4.14750035]
[1771986031479,4.52849264,1932.9,1932.3,5.44124333]
[1771986031696,5.17330574,1933.1,1932.4,8.15380312]
[1771986031697,4.52849264,1933.1,1932.4,8.15380312]
[1771986031996,0.002,1933.2,1932.6,8.15380312]
[1771986032192,5.82369188,1933.2,1932.6,4.13112564]
[1771986032388,4.53049264,1933.2,1932.5,4.12297046]
[1771986033481,4.52849264,1933.1,1932.3,1.29379495]
[1771986034282,4.52849264,1933.1,1932.3,5.31647243]
[1771986035376,4.52849264,1933.1,1932.5,4.02267748]
[1771986035579,5.82179952,1933.1,1932.5,5.31628899]
[1771986035824,0.002,1933.3,1933.0,4.02267748]
[1771986035978,0.002,1933.3,1932.8,8.12138073]
[1771986036311,4.52849264,1933.2,1932.5,6.80851206]
[1771986036879,4.52849264,1933.2,1932.5,5.31628899]
[1771986037493,4.52849264,1933.2,1932.6,0.001]
[1771986037707,5.8217058,1933.2,1932.6,0.001]
[1771986037895,0.002,1933.1,1932.6,0.47266005]
[1771986038098,0.002,1933.1,1932.8,4.02267748]
[1771986039685,0.002,1933.1,1932.8,5.31607759]
[1771986040282,0.002,1933.1,1932.7,1.29348935]
[1771986041325,0.002,1933.1,1932.6,5.37719379]
[1771986044006,0.002,1933.1,1932.7,4.06496673]
[1771986044810,4.52849264,1933.0,1932.6,0.001]
[1771986045005,4.52849264,1933.0,1932.6,1.29458247]
[1771986045814,4.52849264,1933.0,1932.6,0.001]
[1771986046002,4.52849264,1933.0,1932.6,1.29459303]
[1771986047419,4.52849264,1933.0,1932.7,0.80384071]
[1771986048196,4.52849264,1933.0,1932.7,2.09736191]
[1771986048394,0.002,1933.1,1932.7,2.09736191]
[1771986048711,4.53049264,1933.2,1932.9,0.80384071]
[1771986049028,0.002,1933.2,1933.1,0.80384071]
[1771986050811,4.53049264,1933.2,1932.9,0.80384071]
[1771986050996,4.53049264,1933.2,1932.6,1.29454721]
[1771986050997,4.53049264,1933.2,1932.7,0.80384071]
[1771986052599,0.002,1933.3,1933.1,0.80384071]
[1771986054414,4.53049264,1933.4,1933.1,0.80384071]
[1771986054619,4.53049264,1933.4,1933.3,0.80384071]
[1771986055322,4.6990512,1933.6,1933.2,4.01614922]
[1771986056594,4.6990512,1933.6,1933.2,5.30931089]
[1771986056792,4.6990512,1933.8,1933.3,4.63396721]
[1771986057220,0.002,1934.0,1933.6,8.65011643]
[1771986057724,0.002,1934.3,1933.9,4.63396721]
[1771986057910,4.7010512,1934.8,1934.1,8.65011643]
[1771986058224,0.002,1934.8,1934.3,8.65011643]
[1771986058422,1.29413374,1934.8,1934.1,8.65011643]
[1771986058627,1.29413374,1934.8,1934.2,1.29252404]
[1771986058628,0.002,1934.8,1934.2,1.29252404]
[1771986059128,0.002,1934.8,1934.5,4.01614922]
[1771986059334,0.002,1934.8,1934.4,4.63396721]
[1771986059693,0.002,1935.0,1934.4,4.63396721]
[1771986060122,0.002,1935.0,1934.4,5.10562726]
[1771986060307,0.002,1935.0,1934.4,4.63396721]
[1771986060624,0.002,1935.0,1934.5,1.29232359]
[1771986061231,5.72024893,1936.2,1935.1,4.63796721]
[1771986061534,5.72024893,1936.2,1934.9,13.195]
[1771986061699,5.72024893,1936.2,1935.3,10.24954747]
[1771986061899,4.32853845,1936.2,1935.4,4.63396721]
[1771986062111,0.002,1936.3,1935.7,4.63396721]
[1771986062326,1.2931265,1936.3,1935.7,4.63396721]
[1771986062515,1.2931265,1936.3,1935.3,5.61558026]
[1771986062516,4.6990512,1936.2,1935.3,4.63396721]
[1771986062720,1.29125561,1936.1,1935.4,1.29172264]
[1771986063429,4.6990512,1936.0,1935.3,4.63396721]
[1771986063637,4.6990512,1936.0,1935.0,5.92592038]
[1771986064499,4.6990512,1936.0,1935.1,4.63396721]
[1771986064833,5.99220029,1936.3,1935.4,4.63396721]
[1771986065132,4.6990512,1936.2,1935.3,4.63396721]
[1771986065303,0.002,1936.1,1935.3,4.63396721]
[1771986065502,4.7010512,1936.1,1935.1,1.37380855]
[1771986065916,4.7010512,1936.1,1935.1,1.29188855]
[1771986066600,4.7010512,1936.1,1935.1,5.92585576]
[1771986066803,1.29132231,1936.0,1935.2,4.63396721]
[1771986068532,5.99037351,1936.0,1935.2,4.63396721]
[1771986069029,5.99037351,1936.0,1935.2,5.92581642]
[1771986069934,0.002,1936.1,1935.4,4.63396721]
[1771986070148,0.002,1936.1,1935.6,10.24954747]
[1771986070814,0.002,1936.1,1935.6,4.63396721]
[1771986071016,0.002,1936.1,1935.6,5.92554837]
[1771986071504,0.002,1936.3,1935.8,10.24954747]
[1771986071899,0.002,1936.3,1935.8,4.63396721]
[1771986072341,3.89868931,1937.4,1936.4,4.63396721]
[1771986072851,5.98938501,1937.5,1936.7,1.29085557]
[1771986073440,4.6990512,1937.4,1936.6,4.63396721]
[1771986073631,4.6990512,1937.4,1936.4,1.29099785]
[1771986073843,4.6990512,1937.1,1936.0,1.29130198]
[1771986074352,4.6990512,1937.4,1936.4,10.24954747]
[1771986074507,4.6990512,1937.4,1935.9,0.08192]